[Event "*** Titled Tuesday Blitz"]
[Site "Chess.com"]
[Date "2020.12.29"]
[Round "9"]
[White "Blue_Ratatoeskr"]
[Black "lelajavakhishvili"]
[Result "0-1"]
[WhiteElo "2351"]
[BlackElo "2515"]
[TimeControl "180+1"]
[EndTime "11:45:47 PST"]
[Termination "lelajavakhishvili won by resignation"]

1. c4 {[%clk 0:03:00.9]} 1... e5 {[%clk 0:02:57.5]} 2. g3 {[%clk 0:03:00.6]}
2... Nc6 {[%clk 0:02:56.4]} 3. Bg2 {[%clk 0:03:01.1]} 3... g6 {[%clk 0:02:56.8]}
4. Nc3 {[%clk 0:03:01.4]} 4... Bg7 {[%clk 0:02:57.1]} 5. e4 {[%clk 0:03:02]}
5... Nge7 {[%clk 0:02:55.5]} 6. Nge2 {[%clk 0:03:02.5]} 6... O-O {[%clk
0:02:55.6]} 7. O-O {[%clk 0:03:02.5]} 7... d6 {[%clk 0:02:55.7]} 8. d3 {[%clk
0:03:03.2]} 8... Nd4 {[%clk 0:02:55.5]} 9. Nxd4 {[%clk 0:03:02.3]} 9... exd4
{[%clk 0:02:55.2]} 10. Ne2 {[%clk 0:03:02.8]} 10... f5 {[%clk 0:02:43.2]} 11.
Bg5 {[%clk 0:02:52.8]} 11... fxe4 {[%clk 0:02:40]} 12. Bxe4 {[%clk 0:02:51.7]}
12... c6 {[%clk 0:02:10.4]} 13. Qd2 {[%clk 0:02:25.9]} 13... Bf5 {[%clk
0:02:00.1]} 14. Bxf5 {[%clk 0:02:08.5]} 14... Rxf5 {[%clk 0:01:59.3]} 15. Rae1
{[%clk 0:02:09]} 15... Rf7 {[%clk 0:01:53.5]} 16. Nf4 {[%clk 0:02:03]} 16... Qd7
{[%clk 0:01:51.5]} 17. Bxe7 {[%clk 0:01:36.2]} 17... Rxe7 {[%clk 0:01:50.7]} 18.
Rxe7 {[%clk 0:01:36.5]} 18... Qxe7 {[%clk 0:01:51.3]} 19. Re1 {[%clk 0:01:36.2]}
19... Qd7 {[%clk 0:01:49.6]} 20. h4 {[%clk 0:01:30.9]} 20... Be5 {[%clk
0:01:47]} 21. Kg2 {[%clk 0:01:22.5]} 21... Rf8 {[%clk 0:01:46]} 22. Nh3 {[%clk
0:01:18.5]} 22... Qf5 {[%clk 0:01:21]} 23. f4 {[%clk 0:01:15.6]} 23... Bf6
{[%clk 0:01:18.8]} 24. Qe2 {[%clk 0:01:14.2]} 24... Kg7 {[%clk 0:01:01.8]} 25.
Ng5 {[%clk 0:01:06.3]} 25... Bxg5 {[%clk 0:01:00.4]} 26. hxg5 {[%clk 0:01:07.2]}
26... Rf7 {[%clk 0:00:57.5]} 27. Qe4 {[%clk 0:01:03.7]} 27... Qxe4+ {[%clk
0:00:49.1]} 28. Rxe4 {[%clk 0:01:02.5]} 28... c5 {[%clk 0:00:49.2]} 29. Re6
{[%clk 0:01:02.6]} 29... Rd7 {[%clk 0:00:49.3]} 30. Kf3 {[%clk 0:01:01.7]} 30...
Kf7 {[%clk 0:00:43.4]} 31. Rf6+ {[%clk 0:00:58.4]} 31... Ke7 {[%clk 0:00:43.7]}
32. Ke4 {[%clk 0:00:59]} 32... b5 {[%clk 0:00:39.4]} 33. b3 {[%clk 0:00:49.6]}
33... bxc4 {[%clk 0:00:39]} 34. bxc4 {[%clk 0:00:46]} 34... Rb7 {[%clk
0:00:39.9]} 35. Kd5 {[%clk 0:00:45.1]} 35... Rb6 {[%clk 0:00:37.7]} 36. g4
{[%clk 0:00:38.1]} 36... a5 {[%clk 0:00:36.2]} 37. f5 {[%clk 0:00:37.4]} 37...
a4 {[%clk 0:00:34.2]} 38. fxg6 {[%clk 0:00:34]} 38... hxg6 {[%clk 0:00:34.3]}
39. Rxg6 {[%clk 0:00:34.6]} 39... Rb2 {[%clk 0:00:32.8]} 40. Rg7+ {[%clk
0:00:33.8]} 40... Kf8 {[%clk 0:00:32.4]} 41. Ra7 {[%clk 0:00:30.7]} 41... Rxa2
{[%clk 0:00:32.4]} 42. Kxd6 {[%clk 0:00:29.4]} 42... Rd2 {[%clk 0:00:27.1]} 43.
Rxa4 {[%clk 0:00:27]} 43... Rxd3 {[%clk 0:00:27.3]} 44. Kxc5 {[%clk 0:00:27.2]}
44... Rd1 {[%clk 0:00:24.9]} 45. Ra6 {[%clk 0:00:25.6]} 45... d3 {[%clk
0:00:24.5]} 46. Rd6 {[%clk 0:00:25.7]} 46... d2 {[%clk 0:00:24]} 47. g6 {[%clk
0:00:26]} 47... Kg7 {[%clk 0:00:23.4]} 48. Rd4 {[%clk 0:00:20]} 48... Kxg6
{[%clk 0:00:22.4]} 49. Kd5 {[%clk 0:00:20.1]} 49... Kg5 {[%clk 0:00:20.7]} 50.
c5 {[%clk 0:00:20.7]} 50... Kh4 {[%clk 0:00:19.9]} 51. c6 {[%clk 0:00:21]} 51...
Kg3 {[%clk 0:00:18.4]} 52. Kd6 {[%clk 0:00:20.8]} 52... Kf3 {[%clk 0:00:17.6]}
53. c7 {[%clk 0:00:20.5]} 53... Ke3 {[%clk 0:00:17.9]} 54. Rd5 {[%clk
0:00:15.9]} 54... Rc1 {[%clk 0:00:16.5]} 55. Kd7 {[%clk 0:00:14.2]} 55... d1=Q
{[%clk 0:00:13.5]} 56. Rxd1 {[%clk 0:00:13.8]} 56... Rxd1+ {[%clk 0:00:13]} 57.
Ke8 {[%clk 0:00:12.9]} 57... Rc1 {[%clk 0:00:12.6]} 58. Kd8 {[%clk 0:00:13.2]}
58... Rd1+ {[%clk 0:00:12.6]} 59. Ke7 {[%clk 0:00:10.4]} 59... Rc1 {[%clk
0:00:12.5]} 60. Kd6 {[%clk 0:00:09.6]} 60... Kf4 {[%clk 0:00:12.3]} 61. Ke7
{[%clk 0:00:10.3]} 61... Rxc7+ {[%clk 0:00:09.6]} 62. Kd6 {[%clk 0:00:08.8]}
62... Rg7 {[%clk 0:00:09.5]} 0-1

[Event "*** Titled Tuesday Blitz"]
[Site "Chess.com"]
[Date "2020.12.29"]
[Round "9"]
[White "ErikRonka"]
[Black "VladaSviridova"]
[Result "1-0"]
[WhiteElo "2380"]
[BlackElo "2255"]
[TimeControl "180+1"]
[EndTime "11:45:55 PST"]
[Termination "ErikRonka won by resignation"]

1. e4 {[%clk 0:03:00.9]} 1... e6 {[%clk 0:02:59.3]} 2. d4 {[%clk 0:02:54.9]}
2... d5 {[%clk 0:02:59.1]} 3. Nc3 {[%clk 0:02:54.7]} 3... Bb4 {[%clk 0:02:58.2]}
4. exd5 {[%clk 0:02:54.6]} 4... exd5 {[%clk 0:02:57.7]} 5. Bd3 {[%clk
0:02:50.8]} 5... Ne7 {[%clk 0:02:57.9]} 6. Qh5 {[%clk 0:02:45.3]} 6... Nbc6
{[%clk 0:02:56.5]} 7. Nf3 {[%clk 0:02:42.4]} 7... Be6 {[%clk 0:02:56.5]} 8. Ng5
{[%clk 0:02:16]} 8... Qd7 {[%clk 0:02:43]} 9. O-O {[%clk 0:01:58.6]} 9... Nxd4
{[%clk 0:02:17]} 10. Nxe6 {[%clk 0:01:53]} 10... Nxe6 {[%clk 0:02:14.4]} 11. Ne2
{[%clk 0:01:14.2]} 11... Bd6 {[%clk 0:01:55.7]} 12. Bd2 {[%clk 0:00:57.4]} 12...
g6 {[%clk 0:01:40.1]} 13. Qf3 {[%clk 0:00:51.8]} 13... O-O-O {[%clk 0:01:29.2]}
14. b4 {[%clk 0:00:29.1]} 14... Rdf8 {[%clk 0:01:14.6]} 15. Rfd1 {[%clk
0:00:25.5]} 15... f5 {[%clk 0:01:12.1]} 16. c4 {[%clk 0:00:25.9]} 16... Be5
{[%clk 0:00:36.1]} 17. Rac1 {[%clk 0:00:21.8]} 17... d4 {[%clk 0:00:19.8]} 18.
c5 {[%clk 0:00:20.8]} 18... c6 {[%clk 0:00:18.6]} 19. b5 {[%clk 0:00:19.8]}
19... g5 {[%clk 0:00:18]} 20. bxc6 {[%clk 0:00:18.9]} 20... Qxc6 {[%clk
0:00:17.9]} 21. Qh5 {[%clk 0:00:18.2]} 21... Qe8 {[%clk 0:00:16.7]} 22. Qxe8+
{[%clk 0:00:16.4]} 22... Rxe8 {[%clk 0:00:16.9]} 23. Bc4 {[%clk 0:00:17.3]}
23... Nc7 {[%clk 0:00:16.1]} 24. Bxg5 {[%clk 0:00:17]} 24... Ng6 {[%clk
0:00:15]} 25. Nxd4 {[%clk 0:00:16.5]} 25... Bxd4 {[%clk 0:00:14.4]} 26. Rxd4
{[%clk 0:00:17.4]} 26... h6 {[%clk 0:00:13.6]} 27. Bd2 {[%clk 0:00:15.9]} 27...
Ne5 {[%clk 0:00:13.2]} 28. h3 {[%clk 0:00:14.5]} 28... Nxc4 {[%clk 0:00:11.5]}
29. Rdxc4 {[%clk 0:00:13.3]} 29... Rd8 {[%clk 0:00:11.6]} 30. Bf4 {[%clk
0:00:12.9]} 30... Nd5 {[%clk 0:00:11.4]} 31. Bd6 {[%clk 0:00:13.4]} 31... Kd7
{[%clk 0:00:10.3]} 32. Rd1 {[%clk 0:00:13.4]} 32... Kc6 {[%clk 0:00:10.3]} 33.
Rcd4 {[%clk 0:00:12.8]} 33... Nf6 {[%clk 0:00:10.1]} 34. Re1 {[%clk 0:00:12.3]}
34... Ne4 {[%clk 0:00:09.9]} 35. Be5 {[%clk 0:00:10.6]} 35... Rxd4 {[%clk
0:00:09.3]} 36. Bxd4 {[%clk 0:00:11.5]} 36... Rd8 {[%clk 0:00:09.4]} 37. Be3
{[%clk 0:00:10.6]} 37... h5 {[%clk 0:00:09.1]} 38. f3 {[%clk 0:00:10.3]} 38...
Nxc5 {[%clk 0:00:07.2]} 39. Kh2 {[%clk 0:00:10.7]} 39... Nd3 {[%clk 0:00:06.6]}
40. Rb1 {[%clk 0:00:09.7]} 40... f4 {[%clk 0:00:06.4]} 41. Bxa7 {[%clk
0:00:09.2]} 41... Ra8 {[%clk 0:00:06.1]} 42. Bd4 {[%clk 0:00:05.5]} 42... Rxa2
{[%clk 0:00:05.8]} 43. h4 {[%clk 0:00:04.7]} 43... b5 {[%clk 0:00:04.9]} 44. Rd1
{[%clk 0:00:03.8]} 44... Nf2 {[%clk 0:00:04.1]} 45. Rc1+ {[%clk 0:00:01.4]}
45... Kd5 {[%clk 0:00:03.8]} 46. Bf6 {[%clk 0:00:02.3]} 46... b4 {[%clk
0:00:03.7]} 47. Bg5 {[%clk 0:00:02.2]} 47... b3 {[%clk 0:00:03.9]} 48. Bxf4
{[%clk 0:00:02.3]} 48... Nd3 {[%clk 0:00:04.2]} 49. Rd1 {[%clk 0:00:01.9]} 49...
Kc4 {[%clk 0:00:04.2]} 50. Bh6 {[%clk 0:00:02.2]} 50... b2 {[%clk 0:00:04.3]}
51. Bg7 {[%clk 0:00:02.6]} 51... Ra1 {[%clk 0:00:04.3]} 52. Rxd3 {[%clk
0:00:01.7]} 52... Kxd3 {[%clk 0:00:03.9]} 53. Bxb2 {[%clk 0:00:02.2]} 53... Ra2
{[%clk 0:00:04.5]} 54. Bf6 {[%clk 0:00:02.3]} 54... Ke3 {[%clk 0:00:04.4]} 55.
Kg3 {[%clk 0:00:02.8]} 55... Ra3 {[%clk 0:00:03.7]} 56. Bg5+ {[%clk 0:00:03.7]}
56... Ke2 {[%clk 0:00:04.2]} 57. Kf4 {[%clk 0:00:02]} 57... Ra4+ {[%clk
0:00:04.5]} 58. Ke5 {[%clk 0:00:02]} 58... Kf2 {[%clk 0:00:05]} 59. g4 {[%clk
0:00:02.6]} 59... hxg4 {[%clk 0:00:04.8]} 60. fxg4 {[%clk 0:00:03.5]} 60... Rxg4
{[%clk 0:00:05.1]} 61. Kf6 {[%clk 0:00:04.1]} 61... Kg3 {[%clk 0:00:05.4]} 62.
Kg6 {[%clk 0:00:04.4]} 62... Ra4 {[%clk 0:00:05.4]} 63. h5 {[%clk 0:00:04.7]}
63... Ra6+ {[%clk 0:00:05.8]} 64. Bf6 {[%clk 0:00:05.2]} 64... Kg4 {[%clk
0:00:06]} 65. h6 {[%clk 0:00:05.5]} 65... Rxf6+ {[%clk 0:00:05.9]} 66. Kxf6
{[%clk 0:00:05.4]} 66... Kf4 {[%clk 0:00:05.8]} 67. Kg7 {[%clk 0:00:05.8]} 67...
Kg5 {[%clk 0:00:05.9]} 68. h7 {[%clk 0:00:05.9]} 1-0

[Event "*** Titled Tuesday Blitz"]
[Site "Chess.com"]
[Date "2020.12.29"]
[Round "9"]
[White "rychessmaster1"]
[Black "frenchpin"]
[Result "0-1"]
[WhiteElo "2558"]
[BlackElo "2477"]
[TimeControl "180+1"]
[EndTime "11:45:58 PST"]
[Termination "frenchpin won by resignation"]

1. d4 {[%clk 0:03:00.9]} 1... e6 {[%clk 0:03:00.9]} 2. Nc3 {[%clk 0:03:00.6]}
2... Nf6 {[%clk 0:03:01.4]} 3. Bf4 {[%clk 0:03:00.9]} 3... d5 {[%clk 0:03:01.2]}
4. Nb5 {[%clk 0:03:01.2]} 4... Na6 {[%clk 0:02:59]} 5. e3 {[%clk 0:03:01.6]}
5... c5 {[%clk 0:02:46.9]} 6. c3 {[%clk 0:02:58.6]} 6... Be7 {[%clk 0:02:28.1]}
7. Nf3 {[%clk 0:02:58]} 7... Nh5 {[%clk 0:02:17.7]} 8. Be5 {[%clk 0:02:38.1]}
8... f6 {[%clk 0:02:15.5]} 9. Bg3 {[%clk 0:02:38.7]} 9... O-O {[%clk 0:02:10.5]}
10. a4 {[%clk 0:02:35.3]} 10... Bd7 {[%clk 0:02:03.9]} 11. Bd3 {[%clk
0:02:18.8]} 11... g6 {[%clk 0:01:19.8]} 12. O-O {[%clk 0:01:31.2]} 12... Nxg3
{[%clk 0:01:11.4]} 13. hxg3 {[%clk 0:01:32.1]} 13... Rf7 {[%clk 0:01:02.2]} 14.
b3 {[%clk 0:01:20.9]} 14... Nc7 {[%clk 0:01:02]} 15. Nxc7 {[%clk 0:01:19.4]}
15... Qxc7 {[%clk 0:01:02.9]} 16. Qe2 {[%clk 0:00:58.3]} 16... Bf8 {[%clk
0:00:48.9]} 17. Rac1 {[%clk 0:00:55.5]} 17... Re8 {[%clk 0:00:46.2]} 18. Rfd1
{[%clk 0:00:50.3]} 18... e5 {[%clk 0:00:41.3]} 19. dxe5 {[%clk 0:00:46.4]} 19...
fxe5 {[%clk 0:00:41.4]} 20. Ng5 {[%clk 0:00:47]} 20... Rfe7 {[%clk 0:00:35.7]}
21. Bc2 {[%clk 0:00:46.8]} 21... Bh6 {[%clk 0:00:22.5]} 22. Nf3 {[%clk
0:00:42.9]} 22... e4 {[%clk 0:00:20.8]} 23. Nh2 {[%clk 0:00:42.8]} 23... Bc6
{[%clk 0:00:20.3]} 24. c4 {[%clk 0:00:40.8]} 24... Rd8 {[%clk 0:00:18.7]} 25.
cxd5 {[%clk 0:00:36.7]} 25... Bxd5 {[%clk 0:00:19]} 26. b4 {[%clk 0:00:23.9]}
26... c4 {[%clk 0:00:16.9]} 27. Ng4 {[%clk 0:00:21.1]} 27... Bg7 {[%clk
0:00:16.9]} 28. Bb1 {[%clk 0:00:20.6]} 28... c3 {[%clk 0:00:16.4]} 29. Rxd5
{[%clk 0:00:20.5]} 29... Rxd5 {[%clk 0:00:15.8]} 30. Ba2 {[%clk 0:00:21.2]}
30... Rd7 {[%clk 0:00:15.4]} 31. Qb5 {[%clk 0:00:19.7]} 31... Qc6 {[%clk
0:00:14.6]} 32. Qxc6 {[%clk 0:00:16.5]} 32... bxc6 {[%clk 0:00:14.4]} 33. f3
{[%clk 0:00:16.9]} 33... Kf8 {[%clk 0:00:12.8]} 34. Bxd5 {[%clk 0:00:17.2]}
34... cxd5 {[%clk 0:00:13.6]} 35. Nf2 {[%clk 0:00:16.4]} 35... Re7 {[%clk
0:00:11.6]} 36. f4 {[%clk 0:00:15.5]} 36... Ke8 {[%clk 0:00:10.9]} 37. Kf1
{[%clk 0:00:15.7]} 37... Rb7 {[%clk 0:00:10.9]} 38. b5 {[%clk 0:00:15.6]} 38...
Rc7 {[%clk 0:00:10.6]} 39. Ke2 {[%clk 0:00:15.6]} 39... Rc4 {[%clk 0:00:10.5]}
40. a5 {[%clk 0:00:16.1]} 40... Rb4 {[%clk 0:00:10.6]} 41. b6 {[%clk 0:00:16.6]}
41... axb6 {[%clk 0:00:10.7]} 42. axb6 {[%clk 0:00:17.5]} 42... Rxb6 {[%clk
0:00:11]} 43. Nd1 {[%clk 0:00:18.2]} 43... Rb3 {[%clk 0:00:09.7]} 44. Rc2 {[%clk
0:00:17.9]} 44... d4 {[%clk 0:00:09.7]} 45. exd4 {[%clk 0:00:17.8]} 45... Bxd4
{[%clk 0:00:10.6]} 46. g4 {[%clk 0:00:18]} 46... Kd7 {[%clk 0:00:10.7]} 47. f5
{[%clk 0:00:18.3]} 47... gxf5 {[%clk 0:00:10.3]} 48. gxf5 {[%clk 0:00:19.2]}
48... Ke7 {[%clk 0:00:10.6]} 49. Ne3 {[%clk 0:00:19.7]} 49... Kf6 {[%clk
0:00:07.3]} 50. g4 {[%clk 0:00:19.5]} 50... Kg5 {[%clk 0:00:06.9]} 51. Nd5
{[%clk 0:00:19.3]} 51... Rb2 {[%clk 0:00:06]} 52. Kd1 {[%clk 0:00:19.2]} 52...
Rb1+ {[%clk 0:00:05.9]} 53. Ke2 {[%clk 0:00:19.1]} 53... Rb2 {[%clk 0:00:06.2]}
54. Kd1 {[%clk 0:00:19.6]} 54... Rxc2 {[%clk 0:00:06.1]} 55. Kxc2 {[%clk
0:00:20.5]} 55... Kxg4 {[%clk 0:00:06.5]} 56. f6 {[%clk 0:00:21.1]} 56... Kf3
{[%clk 0:00:04.7]} 57. f7 {[%clk 0:00:20.8]} 57... Bg7 {[%clk 0:00:04.9]} 58.
Nxc3 {[%clk 0:00:18.9]} 58... h5 {[%clk 0:00:02.5]} 59. Kd1 {[%clk 0:00:17.8]}
59... h4 {[%clk 0:00:02.6]} 60. Nb5 {[%clk 0:00:16.9]} 60... h3 {[%clk
0:00:02.7]} 61. Nd4+ {[%clk 0:00:17.6]} 61... Kg2 {[%clk 0:00:02]} 62. Ne6
{[%clk 0:00:18.5]} 62... Bh6 {[%clk 0:00:02]} 63. Ng7 {[%clk 0:00:19.4]} 63...
Bxg7 {[%clk 0:00:01.7]} 64. Ke2 {[%clk 0:00:20.3]} 64... Bf8 {[%clk 0:00:02.6]}
65. Ke3 {[%clk 0:00:21.1]} 65... h2 {[%clk 0:00:03.4]} 66. Kxe4 {[%clk 0:00:22]}
66... h1=Q {[%clk 0:00:03.9]} 67. Kf5 {[%clk 0:00:22.9]} 67... Qh3+ {[%clk
0:00:04.5]} 68. Kg6 {[%clk 0:00:22.7]} 68... Qf3 {[%clk 0:00:05.4]} 69. Kh7
{[%clk 0:00:23.1]} 69... Kf2 {[%clk 0:00:06.3]} 70. Kg6 {[%clk 0:00:23.6]} 70...
Bd6 {[%clk 0:00:06.4]} 71. Kg7 {[%clk 0:00:23.1]} 71... Be5+ {[%clk 0:00:06.2]}
72. Kg8 {[%clk 0:00:22.8]} 72... Bd6 {[%clk 0:00:06.8]} 73. Kg7 {[%clk
0:00:22.8]} 73... Ke3 {[%clk 0:00:07.2]} 74. Kg6 {[%clk 0:00:22.2]} 74... Qg4+
{[%clk 0:00:07.2]} 75. Kf6 {[%clk 0:00:22.4]} 75... Qf4+ {[%clk 0:00:06.6]} 76.
Ke6 {[%clk 0:00:23]} 76... Qe5+ {[%clk 0:00:05.8]} 77. Kd7 {[%clk 0:00:22.1]}
77... Qe7+ {[%clk 0:00:06.4]} 78. Kc6 {[%clk 0:00:23]} 78... Qxf7 {[%clk
0:00:06.9]} 79. Kxd6 {[%clk 0:00:23.9]} 79... Qf4+ {[%clk 0:00:07.1]} 80. Kd5
{[%clk 0:00:24.8]} 80... Kd3 {[%clk 0:00:07.9]} 81. Kc5 {[%clk 0:00:25.2]} 81...
Qe4 {[%clk 0:00:08.3]} 82. Kd6 {[%clk 0:00:26.1]} 82... Qf5 {[%clk 0:00:08.5]}
0-1

[Event "*** Titled Tuesday Blitz"]
[Site "Chess.com"]
[Date "2020.12.29"]
[Round "9"]
[White "dosto07"]
[Black "kinga2008"]
[Result "0-1"]
[WhiteElo "2268"]
[BlackElo "2173"]
[TimeControl "180+1"]
[EndTime "11:45:59 PST"]
[Termination "kinga2008 won on time"]

1. e4 {[%clk 0:03:00.9]} 1... c5 {[%clk 0:02:41.2]} 2. Nf3 {[%clk 0:02:59.7]}
2... a6 {[%clk 0:02:35.5]} 3. c3 {[%clk 0:02:57.9]} 3... Nc6 {[%clk 0:02:11.2]}
4. d4 {[%clk 0:02:56.4]} 4... cxd4 {[%clk 0:02:12.1]} 5. cxd4 {[%clk 0:02:56.2]}
5... d5 {[%clk 0:02:12.7]} 6. exd5 {[%clk 0:02:53.7]} 6... Qxd5 {[%clk
0:02:08.2]} 7. Nc3 {[%clk 0:02:53.5]} 7... Qd8 {[%clk 0:02:02.6]} 8. d5 {[%clk
0:02:40.1]} 8... Nb8 {[%clk 0:01:54.2]} 9. Bf4 {[%clk 0:02:38.4]} 9... Nf6
{[%clk 0:01:45.8]} 10. Be2 {[%clk 0:02:34.3]} 10... g6 {[%clk 0:01:42.6]} 11.
O-O {[%clk 0:02:22.7]} 11... Bg7 {[%clk 0:01:32.9]} 12. a4 {[%clk 0:02:20.7]}
12... O-O {[%clk 0:01:23.4]} 13. h3 {[%clk 0:02:20.7]} 13... Qb6 {[%clk
0:01:19.8]} 14. Qd2 {[%clk 0:02:16]} 14... Nbd7 {[%clk 0:01:16.9]} 15. a5 {[%clk
0:02:11.7]} 15... Qb4 {[%clk 0:01:14.6]} 16. Ra4 {[%clk 0:02:05.9]} 16... Qc5
{[%clk 0:00:55.1]} 17. b4 {[%clk 0:01:46.2]} 17... Qa7 {[%clk 0:00:49.4]} 18.
Rc1 {[%clk 0:01:33.7]} 18... b5 {[%clk 0:00:42.5]} 19. axb6 {[%clk 0:01:32]}
19... Nxb6 {[%clk 0:00:41.4]} 20. Raa1 {[%clk 0:01:28.3]} 20... Bf5 {[%clk
0:00:39.8]} 21. Ne5 {[%clk 0:01:27.1]} 21... Ne4 {[%clk 0:00:23.2]} 22. Nxe4
{[%clk 0:01:19.6]} 22... Bxe4 {[%clk 0:00:21.9]} 23. Rxa6 {[%clk 0:01:19.8]}
23... Qb7 {[%clk 0:00:05.2]} 24. Rxa8 {[%clk 0:01:19.7]} 24... Rxa8 {[%clk
0:00:04.1]} 25. Nc6 {[%clk 0:00:57.8]} 25... Bxd5 {[%clk 0:00:03.4]} 26. Na5
{[%clk 0:00:44.6]} 26... Qd7 {[%clk 0:00:02.6]} 27. Be3 {[%clk 0:00:37.3]} 27...
Rb8 {[%clk 0:00:01.9]} 28. Rd1 {[%clk 0:00:32.1]} 28... Qe6 {[%clk 0:00:02.1]}
29. Bxb6 {[%clk 0:00:30.8]} 29... Bb3 {[%clk 0:00:01.4]} 30. Nxb3 {[%clk
0:00:29.8]} 30... Qxb3 {[%clk 0:00:02.1]} 31. Bc5 {[%clk 0:00:26.9]} 31... e6
{[%clk 0:00:01.7]} 32. Qd3 {[%clk 0:00:17.4]} 32... Qa4 {[%clk 0:00:02.2]} 33.
Bf3 {[%clk 0:00:13.6]} 33... Bf8 {[%clk 0:00:02.1]} 34. Bxf8 {[%clk 0:00:11]}
34... Rxf8 {[%clk 0:00:02.9]} 35. Qd4 {[%clk 0:00:11.4]} 35... Rb8 {[%clk
0:00:03]} 36. Rb1 {[%clk 0:00:10.2]} 36... Qc2 {[%clk 0:00:02.3]} 37. Qb2 {[%clk
0:00:10.5]} 37... Qc4 {[%clk 0:00:01.8]} 38. b5 {[%clk 0:00:10.3]} 38... Qc7
{[%clk 0:00:02]} 39. b6 {[%clk 0:00:10.4]} 39... Qd8 {[%clk 0:00:02.6]} 40. b7
{[%clk 0:00:10.7]} 40... Qe7 {[%clk 0:00:03.1]} 41. h4 {[%clk 0:00:10.6]} 41...
Qxh4 {[%clk 0:00:02.7]} 42. Rc1 {[%clk 0:00:09.8]} 42... Qd8 {[%clk 0:00:02.5]}
43. Qd4 {[%clk 0:00:09]} 43... Qxd4 {[%clk 0:00:02.2]} 44. Rc8+ {[%clk
0:00:08.7]} 44... Qd8 {[%clk 0:00:01.9]} 45. Rxd8+ {[%clk 0:00:08.6]} 45... Rxd8
{[%clk 0:00:02.8]} 46. Kf1 {[%clk 0:00:07.6]} 46... Kf8 {[%clk 0:00:02.8]} 47.
Ke2 {[%clk 0:00:08.5]} 47... Ke7 {[%clk 0:00:03.3]} 48. Ke3 {[%clk 0:00:09.4]}
48... Kd6 {[%clk 0:00:03.8]} 49. Ke4 {[%clk 0:00:10.1]} 49... Rb8 {[%clk
0:00:04]} 50. Kf4 {[%clk 0:00:11]} 50... h5 {[%clk 0:00:02.8]} 51. Kg5 {[%clk
0:00:10.8]} 51... Ke5 {[%clk 0:00:03.4]} 52. g3 {[%clk 0:00:10.2]} 52... Rd8
{[%clk 0:00:02.3]} 53. Bc6 {[%clk 0:00:10.1]} 53... Rb8 {[%clk 0:00:02.4]} 54.
Bg2 {[%clk 0:00:09.2]} 54... Kd6 {[%clk 0:00:02]} 55. Kf6 {[%clk 0:00:09.1]}
55... e5 {[%clk 0:00:01.6]} 56. Kxf7 {[%clk 0:00:09]} 56... g5 {[%clk
0:00:02.2]} 57. Kf6 {[%clk 0:00:08.5]} 57... h4 {[%clk 0:00:02.7]} 58. gxh4
{[%clk 0:00:07.6]} 58... gxh4 {[%clk 0:00:02.7]} 59. Kg5 {[%clk 0:00:08.5]}
59... h3 {[%clk 0:00:03.1]} 60. Bxh3 {[%clk 0:00:08.6]} 60... Rxb7 {[%clk
0:00:03.5]} 61. Bf5 {[%clk 0:00:08.9]} 61... Rf7 {[%clk 0:00:03.6]} 62. f3
{[%clk 0:00:08.8]} 62... Kd5 {[%clk 0:00:02.8]} 63. Kg6 {[%clk 0:00:09]} 63...
Rf8 {[%clk 0:00:03]} 64. Kg5 {[%clk 0:00:09.3]} 64... Kd4 {[%clk 0:00:03.3]} 65.
Be4 {[%clk 0:00:10.2]} 65... Ke3 {[%clk 0:00:03.7]} 66. Kg6 {[%clk 0:00:09.4]}
66... Rxf3 {[%clk 0:00:03.6]} 67. Bxf3 {[%clk 0:00:08.8]} 67... Kxf3 {[%clk
0:00:04.1]} 68. Kf5 {[%clk 0:00:09.7]} 68... e4 {[%clk 0:00:05]} 69. Ke5 {[%clk
0:00:07.8]} 69... e3 {[%clk 0:00:05.9]} 0-1